fUST/lending_fUST_20250227
["ID","MTS","AMOUNT","RATE_DAILY","PERIOD"]
[354717856,1740642649771,-110024.47,0.000472,30]
[354717857,1740642649781,-4993.23,0.000472,30]
[354717858,1740642649790,-151.0,0.000472,120]
[354717859,1740642649800,-151.0,0.000472,120]
[354717860,1740642649810,-179.550595,0.000472,120]
[354717861,1740642649820,-179.550595,0.000472,120]
[354717862,1740642649829,-151.0,0.000472,120]
[354717863,1740642649839,-151.0,0.000472,30]
[354717864,1740642649849,-257.816586,0.000472,120]
[354717865,1740642649859,-257.816586,0.000472,120]
[354717866,1740642649867,-151.0,0.000472,120]
[354717867,1740642649877,-151.0,0.000472,120]
[354717868,1740642649887,-151.0,0.000472,120]
[354717869,1740642649897,-151.0,0.000472,120]
[354717870,1740642649906,-250.394948,0.000472,120]
[354717871,1740642649916,-250.394948,0.000472,120]
[354717872,1740642649926,-237.073155,0.000472,2]
[354717873,1740642649935,-237.073155,0.000472,2]
[354717874,1740642649945,-1000.0,0.00047396,2]
[354717875,1740642649954,-513.18,0.00047397,120]
[354717876,1740642649963,-500.0,0.00047397,120]
[354717877,1740642649972,-500.0,0.00047397,120]
[354717878,1740642649982,-435.61678,0.00047397,120]
[354717879,1740642649992,-500.0,0.00047397,120]
[354717880,1740642650001,-317.37392882,0.00047397,120]
[354717881,1740642650010,-574.71,0.00047397,120]
[354717882,1740642650019,-500.0,0.00047397,120]
[354717883,1740642650029,-500.0,0.00047397,120]
[354717884,1740642650038,-500.0,0.00047397,120]
[354717885,1740642650048,-500.0,0.00047397,120]
[354717886,1740642650057,-561.45,0.00047397,120]
[354717887,1740642650067,-500.0,0.00047397,120]
[354717888,1740642650075,-500.0,0.00047397,120]
[354717889,1740642650085,-500.0,0.00047397,120]
[354717890,1740642650095,-500.0,0.00047397,120]
[354717891,1740642650104,-500.0,0.00047397,120]
[354717892,1740642650115,-500.0,0.00047397,120]
[354717893,1740642650124,-500.0,0.00047397,120]
[354717894,1740642650133,-500.0,0.00047397,120]
[354717895,1740642650143,-500.0,0.00047397,2]
[354717896,1740642650152,-500.0,0.00047397,120]
[354717897,1740642650161,-500.0,0.00047397,120]
[354717898,1740642650170,-500.0,0.00047397,120]
[354717899,1740642650179,-500.0,0.00047397,120]
[354717900,1740642650189,-500.0,0.00047397,120]
[354717901,1740642650199,-500.0,0.00047397,120]
[354717902,1740642650209,-500.0,0.00047397,120]
[354717903,1740642650219,-500.0,0.00047397,120]
[354717904,1740642650228,-515.19,0.00047397,120]
[354717905,1740642650238,-1026.45,0.00047397,120]
[354717906,1740642650247,-2212.85,0.00047397,120]
[354717907,1740642650257,-950.98,0.00047397,120]
[354717908,1740642650267,-500.0,0.00047397,120]
[354717909,1740642650276,-500.0,0.00047397,120]
[354717910,1740642650285,-500.0,0.00047397,120]
[354717911,1740642650295,-500.0,0.00047397,120]
[354717912,1740642650304,-500.0,0.00047397,120]
[354717913,1740642650313,-870.15,0.00047397,120]
[354717914,1740642650323,-500.0,0.00047397,120]
[354717915,1740642650332,-500.0,0.00047397,120]
[354717916,1740642650342,-500.0,0.00047397,120]
[354717917,1740642650351,-766.63,0.00047397,120]
[354717918,1740642650362,-500.0,0.00047397,120]
[354717919,1740642650374,-500.0,0.00047397,120]
[354717920,1740642650383,-490.60318423,0.00047397,120]
[354717921,1740642650393,-500.0,0.00047397,120]
[354717922,1740642650402,-888.31,0.00047397,120]
[354717923,1740642650412,-507.84,0.00047397,120]
[354717924,1740642650421,-500.0,0.00047397,14]
[354717925,1740642650431,-500.0,0.00047397,120]
[354717926,1740642650440,-236.3205,0.00047397,120]
[354717927,1740642650450,-616.3,0.00047397,120]
[354717928,1740642650458,-637.6,0.00047397,120]
[354717929,1740642650467,-500.0,0.00047397,120]
[354717930,1740642650477,-500.0,0.00047397,120]
[354717931,1740642650486,-669.6,0.00047397,120]
[354717932,1740642650495,-500.0,0.00047397,120]
[354717933,1740642650504,-500.0,0.00047397,120]
[354717934,1740642650513,-1094.3,0.00047397,120]
[354717935,1740642650522,-500.0,0.00047397,120]
[354717936,1740642650533,-818.83,0.00047397,120]
[354717937,1740642650547,-500.0,0.00047397,120]
[354717938,1740642650556,-500.0,0.00047397,120]
[354717939,1740642650565,-500.0,0.00047397,120]
[354717940,1740642650574,-697.21,0.00047397,120]
[354717941,1740642650583,-500.0,0.00047397,120]
[354717942,1740642650592,-1228.85,0.00047397,120]
[354717943,1740642650601,-500.0,0.00047397,120]
[354717944,1740642650610,-500.0,0.00047397,120]
[354717945,1740642650619,-500.0,0.00047397,120]
[354717946,1740642650630,-179.550595,0.00047397,120]
[354717947,1740642650639,-500.0,0.00047397,120]
[354717948,1740642650648,-179.550595,0.00047397,120]
[354717949,1740642650658,-1022.3,0.00047397,120]
[354717950,1740642650668,-500.0,0.00047397,120]
[354717951,1740642650679,-500.0,0.00047397,120]
[354717952,1740642650690,-500.0,0.00047397,120]
[354717953,1740642650699,-500.0,0.00047397,120]
[354717954,1740642650708,-151.0,0.00047397,120]
[354717955,1740642650717,-500.0,0.00047397,120]
[354717956,1740642650727,-974.01,0.00047397,120]
[354717957,1740642650736,-636.73,0.00047397,120]
[354717958,1740642650745,-500.0,0.00047397,120]
[354717959,1740642650754,-500.0,0.00047397,120]
[354717960,1740642650763,-500.0,0.00047397,120]
[354717961,1740642650772,-500.0,0.00047397,120]
[354717962,1740642650781,-566.08,0.00047397,120]
[354717963,1740642650791,-500.0,0.00047397,120]
[354717964,1740642650801,-500.0,0.00047397,120]
[354717965,1740642650811,-500.0,0.00047397,120]
[354717966,1740642650820,-500.0,0.00047397,120]
[354717967,1740642650830,-500.0,0.00047397,120]
[354717968,1740642650839,-500.0,0.00047397,120]
[354717969,1740642650849,-620.23,0.00047397,120]
[354717970,1740642650858,-1744.91,0.00047397,120]
[354717971,1740642650868,-500.0,0.00047397,120]
[354717972,1740642650878,-500.0,0.00047397,120]
[354717973,1740642650887,-500.0,0.00047397,120]
[354717974,1740642650897,-500.0,0.00047397,120]
[354717975,1740642650907,-500.0,0.00047397,120]
[354717976,1740642650917,-500.0,0.00047397,120]
[354717977,1740642650926,-500.0,0.00047397,120]
[354717978,1740642650936,-151.0,0.00047397,120]
[354717979,1740642650946,-151.0,0.00047397,120]
[354717980,1740642650955,-9000.62,0.00047397,120]
[354717981,1740642650965,-4241.78,0.00047397,120]
[354717982,1740642650974,-151.0,0.00047397,120]
[354717983,1740642650983,-151.0,0.00047397,120]
[354717984,1740642650993,-500.0,0.00047397,120]
[354717985,1740642651002,-940.43,0.00047397,120]
[354717986,1740642651011,-500.0,0.00047397,120]
[354717987,1740642651021,-1062.62,0.00047397,120]
[354717988,1740642651030,-621.99,0.00047397,120]
[354717989,1740642651040,-500.0,0.00047397,120]
[354717990,1740642651051,-500.0,0.00047397,120]
[354717991,1740642651060,-3313.06,0.00047397,120]
[354717992,1740642651070,-500.0,0.00047397,120]
[354717993,1740642651079,-13443.88,0.00047397,120]
[354717994,1740642651089,-500.0,0.00047397,120]
[354717995,1740642651098,-994.51,0.00047397,120]
[354717996,1740642651108,-1418.72,0.00047397,120]
[354717997,1740642651117,-500.0,0.00047397,120]
[354717998,1740642651126,-500.0,0.00047397,120]
[354717999,1740642651135,-422.84857343,0.00047397,120]
[354718000,1740642651145,-627.5,0.00047397,120]
[354718001,1740642651154,-151.0,0.00047397,30]
[354718002,1740642651164,-1146.57,0.00047397,120]
[354718003,1740642651173,-500.0,0.00047397,120]
[354718004,1740642651183,-1775.15,0.00047397,120]
[354718005,1740642651192,-352.66385049,0.00047397,120]
[354718006,1740642651202,-58575.94,0.00047397,7]
[354718007,1740642651213,-500.0,0.00047397,120]
[354718008,1740642651224,-5065.43,0.00047397,120]
[354718009,1740642651234,-1176.97,0.00047397,120]
[354718010,1740642651243,-257.816586,0.00047397,120]
[354718011,1740642651252,-500.0,0.00047397,30]
[354718012,1740642651261,-500.0,0.00047397,120]
[354718013,1740642651271,-257.816586,0.00047397,120]
[354718014,1740642651279,-500.0,0.00047397,120]
[354718015,1740642651289,-629.37,0.00047397,120]
[354718016,1740642651298,-1077.39,0.00047397,120]
[354718017,1740642651307,-1736.5,0.00047397,120]
[354718018,1740642651318,-500.0,0.00047397,120]
[354718019,1740642651327,-500.0,0.00047397,120]
[354718020,1740642651337,-500.0,0.00047397,120]
[354718021,1740642651348,-637.44,0.00047397,120]
[354718022,1740642651358,-151.0,0.00047397,120]
[354718023,1740642651367,-500.0,0.00047397,120]
[354718024,1740642651376,-500.0,0.00047397,120]
[354718025,1740642651386,-1000.53,0.00047397,120]
[354718026,1740642651395,-500.0,0.00047397,120]
[354718027,1740642651405,-552.97,0.00047397,3]
[354718028,1740642651416,-500.0,0.00047397,120]
[354718029,1740642651428,-552.19,0.00047397,120]
[354718030,1740642651438,-754.96,0.00047397,120]
[354718031,1740642651447,-710.78,0.00047397,120]
[354718032,1740642651457,-2551.21,0.00047397,120]
[354718033,1740642651467,-500.0,0.00047397,120]
[354718034,1740642651475,-2674.23,0.00047397,120]
[354718035,1740642651485,-151.0,0.00047397,120]
[354718036,1740642651495,-500.0,0.00047397,120]
[354718037,1740642651504,-183.599983,0.00047397,120]
[354718038,1740642651514,-615.36,0.00047397,120]
[354718039,1740642651523,-1223.79,0.00047397,120]
[354718040,1740642651533,-1000.0,0.00047397,2]
[354718041,1740642651543,-165.801969,0.00047397,120]
[354718042,1740642651553,-500.0,0.00047397,120]
[354718043,1740642651563,-500.0,0.00047397,120]
[354718044,1740642651572,-796.34,0.00047397,120]
[354718045,1740642651582,-858.79,0.00047397,120]
[354718046,1740642651592,-500.0,0.00047397,120]
[354718047,1740642651601,-500.0,0.00047397,120]
[354718048,1740642651610,-500.0,0.00047397,120]
[354718049,1740642651622,-773.66,0.00047397,120]
[354718050,1740642651633,-500.0,0.00047397,120]
[354718051,1740642651644,-547.26,0.00047397,120]
[354718052,1740642651657,-584.11,0.00047397,120]
[354718053,1740642651668,-500.0,0.00047397,120]
[354718054,1740642651680,-500.0,0.00047397,120]
[354718055,1740642651691,-685.79,0.00047397,120]
[354718056,1740642651701,-250.394948,0.00047397,120]
[354718057,1740642651711,-705.28,0.00047397,120]
[354718058,1740642651720,-1410.49,0.00047397,120]
[354718059,1740642651730,-500.0,0.00047397,120]
[354718060,1740642651739,-250.394948,0.00047397,120]
[354718061,1740642651749,-500.0,0.00047397,120]
[354718062,1740642651758,-1720.27,0.00047397,120]
[354718063,1740642651768,-500.0,0.00047397,120]
[354718064,1740642651778,-500.0,0.00047397,120]
[354718065,1740642651788,-237.073155,0.00047397,2]
[354718066,1740642651797,-500.08,0.00047397,120]
[354718067,1740642651806,-902.8,0.00047397,120]
[354718068,1740642651816,-500.0,0.00047397,120]
[354718069,1740642651826,-237.073155,0.00047397,2]
[354718070,1740642651835,-500.0,0.00047397,21]
[354718071,1740642651844,-500.0,0.00047397,120]
[354718072,1740642651853,-3095.26,0.00047397,120]
[354718073,1740642651863,-1071.42,0.00047397,120]
[354718074,1740642651872,-500.0,0.00047397,120]
[354718075,1740642651882,-500.0,0.00047397,120]
[354718076,1740642651891,-1142.83,0.00047397,120]
[354718077,1740642651900,-500.0,0.00047397,120]
[354718078,1740642651910,-12157.06,0.00047397,6]
[354718079,1740642651919,-1746.49,0.00047397,120]
[354718080,1740642651929,-1033.14,0.00047397,120]
[354718081,1740642651938,-674.59,0.00047397,120]
[354718082,1740642651948,-1697.17,0.00047397,120]
[354718083,1740642651957,-500.0,0.00047397,120]
[354718084,1740642651966,-500.0,0.00047397,120]
[354718085,1740642651976,-500.0,0.00047397,120]
[354718086,1740642651985,-676.9,0.00047397,120]
[354718087,1740642651995,-586.7977765,0.00047397,120]
[354718088,1740642652004,-500.0,0.00047397,120]
[354718089,1740642652014,-500.0,0.00047397,120]
[354718090,1740642652023,-5805.6651909,0.00047571,2]
[354718091,1740642652034,-500.0,0.00047671,120]
[354718092,1740642652044,-500.0,0.00047671,120]
[354718093,1740642652055,-500.0,0.00047671,120]
[354718094,1740642652064,-574.71,0.00047671,120]
[354718095,1740642652073,-500.0,0.00047671,120]
[354718096,1740642652083,-500.0,0.00047671,120]
[354718097,1740642652092,-603.29489141,0.00047671,120]
[354718098,1740642652101,-500.0,0.00047671,120]
[354718099,1740642652112,-500.0,0.00047671,120]
[354718100,1740642652122,-500.0,0.00047671,120]
[354718101,1740642652132,-500.0,0.00047671,120]
[354718102,1740642652143,-500.0,0.00047671,120]
[354718103,1740642652154,-500.0,0.00047671,120]
[354718104,1740642652163,-500.0,0.00047671,120]
[354718105,1740642652173,-570.52,0.00047671,120]
[354718106,1740642652182,-500.0,0.00047671,120]
[354718107,1740642652192,-500.0,0.00047671,2]
[354718108,1740642652202,-500.0,0.00047671,120]
[354718109,1740642652212,-518.60147848,0.00047671,120]
[354718110,1740642652226,-500.0,0.00047671,120]
[354718111,1740642652238,-500.0,0.00047671,120]
[354718112,1740642652247,-500.0,0.00047671,120]
[354718113,1740642652257,-500.0,0.00047671,120]
[354718114,1740642652267,-500.0,0.00047671,120]
[354718115,1740642652277,-500.0,0.00047671,120]
[354718116,1740642652286,-515.19,0.00047671,120]
[354718117,1740642652295,-1026.45,0.00047671,120]
[354718118,1740642652305,-2212.85,0.00047671,120]
[354718119,1740642652314,-950.98,0.00047671,120]
[354718120,1740642652324,-500.0,0.00047671,120]
[354718121,1740642652333,-191.59,0.00047671,120]
[354718122,1740642652342,-500.0,0.00047671,120]
[354718123,1740642652351,-500.0,0.00047671,120]
[354718124,1740642652360,-500.0,0.00047671,120]
[354718125,1740642652369,-870.15,0.00047671,120]
[354718126,1740642652379,-500.0,0.00047671,120]
[354718127,1740642652388,-500.0,0.00047671,120]
[354718128,1740642652397,-429.62697479,0.00047671,120]
[354718129,1740642652406,-766.63,0.00047671,120]
[354718130,1740642652415,-500.0,0.00047671,120]
[354718131,1740642652425,-500.0,0.00047671,120]
[354718132,1740642652434,-500.0,0.00047671,120]
[354718133,1740642652444,-888.31,0.00047671,120]
[354718134,1740642652453,-507.84,0.00047671,120]
[354718135,1740642652463,-500.0,0.00047671,14]
[354718136,1740642652473,-500.0,0.00047671,120]
[354718137,1740642652482,-616.3,0.00047671,120]
[354718138,1740642652491,-637.6,0.00047671,120]
[354718139,1740642652501,-500.0,0.00047671,120]
[354718140,1740642652511,-500.0,0.00047671,120]
[354718141,1740642652523,-669.6,0.00047671,120]
[354718142,1740642652534,-500.0,0.00047671,120]
[354718143,1740642652546,-1094.3,0.00047671,120]
[354718144,1740642652556,-500.0,0.00047671,120]
[354718145,1740642652566,-818.83,0.00047671,120]
[354718146,1740642652696,-500.0,0.00047671,120]
[354718147,1740642652705,-500.0,0.00047671,120]
[354718148,1740642652714,-500.0,0.00047671,120]
[354718149,1740642652724,-697.21,0.00047671,120]
[354718150,1740642652733,-500.0,0.00047671,120]
[354718151,1740642652743,-1228.85,0.00047671,120]
[354718152,1740642652752,-500.0,0.00047671,120]
[354718153,1740642652762,-500.0,0.00047671,120]
[354718154,1740642652773,-500.0,0.00047671,120]
[354718155,1740642652783,-179.550595,0.00047671,120]
[354718156,1740642652793,-500.0,0.00047671,120]
[354718157,1740642652803,-179.550595,0.00047671,120]
[354718158,1740642652813,-1022.3,0.00047671,120]
[354718159,1740642652822,-500.0,0.00047671,120]
[354718160,1740642652832,-500.0,0.00047671,120]
[354718161,1740642652841,-500.0,0.00047671,120]
[354718162,1740642652850,-500.0,0.00047671,120]
[354718163,1740642652860,-500.0,0.00047671,120]
[354718164,1740642652869,-974.01,0.00047671,120]
[354718165,1740642652879,-636.73,0.00047671,120]
[354718166,1740642652889,-158.23770101,0.00047671,120]
[354718167,1740642652899,-500.0,0.00047671,120]
[354718168,1740642652908,-566.08,0.00047671,120]
[354718169,1740642652918,-500.0,0.00047671,120]
[354718170,1740642652929,-500.0,0.00047671,120]
[354718171,1740642652938,-500.0,0.00047671,120]
[354718172,1740642652947,-518.88697544,0.00047671,120]
[354718173,1740642652957,-500.0,0.00047671,120]
[354718174,1740642652966,-500.0,0.00047671,120]
[354718175,1740642652976,-620.23,0.00047671,120]
[354718176,1740642652984,-1744.91,0.00047671,120]
[354718177,1740642652994,-500.0,0.00047671,120]
[354718178,1740642653005,-500.0,0.00047671,120]
[354718179,1740642653014,-527.14,0.00047671,120]
[354718180,1740642653023,-500.0,0.00047671,120]
[354718181,1740642653033,-500.0,0.00047671,120]
[354718182,1740642653043,-151.0,0.00047671,120]
[354718183,1740642653052,-9000.62,0.00047671,120]
[354718184,1740642653062,-4241.78,0.00047671,120]
[354718185,1740642653071,-151.0,0.00047671,120]
[354718186,1740642653080,-940.43,0.00047671,120]
[354718187,1740642653089,-532.57,0.00047671,120]
[354718188,1740642653098,-1062.62,0.00047671,120]
[354718189,1740642653107,-621.99,0.00047671,120]
[354718190,1740642653117,-500.0,0.00047671,120]
[354718191,1740642653126,-500.0,0.00047671,120]
[354718192,1740642653135,-3313.06,0.00047671,120]
[354718193,1740642653144,-500.0,0.00047671,120]
[354718194,1740642653154,-13443.88,0.00047671,120]
[354718195,1740642653164,-500.0,0.00047671,120]
[354718196,1740642653173,-994.51,0.00047671,120]
[354718197,1740642653183,-1418.72,0.00047671,120]
[354718198,1740642653192,-500.0,0.00047671,120]
[354718199,1740642653202,-627.5,0.00047671,120]
[354718200,1740642653211,-151.0,0.00047671,30]
[354718201,1740642653221,-1146.57,0.00047671,120]
[354718202,1740642653231,-500.0,0.00047671,120]
[354718203,1740642653240,-1775.15,0.00047671,120]
[354718204,1740642653249,-58575.94,0.00047671,7]
[354718205,1740642653258,-500.0,0.00047671,120]
[354718206,1740642653268,-5065.43,0.00047671,120]
[354718207,1740642653277,-1176.97,0.00047671,120]
[354718208,1740642653287,-257.816586,0.00047671,120]
[354718209,1740642653295,-500.0,0.00047671,30]
[354718210,1740642653305,-500.0,0.00047671,120]
[354718211,1740642653314,-257.816586,0.00047671,120]
[354718212,1740642653323,-500.0,0.00047671,120]
[354718213,1740642653332,-629.37,0.00047671,120]
[354718214,1740642653343,-1077.39,0.00047671,120]
[354718215,1740642653355,-1736.5,0.00047671,120]
[354718216,1740642653365,-500.0,0.00047671,120]
[354718217,1740642653375,-500.0,0.00047671,120]
[354718218,1740642653384,-500.0,0.00047671,120]
[354718219,1740642653393,-637.44,0.00047671,120]
[354718220,1740642653402,-151.0,0.00047671,120]
[354718221,1740642653411,-151.0,0.00047671,120]
[354718222,1740642653421,-500.0,0.00047671,120]
[354718223,1740642653430,-500.0,0.00047671,120]
[354718224,1740642653440,-1000.53,0.00047671,120]
[354718225,1740642653450,-500.0,0.00047671,120]
[354718226,1740642653459,-552.97,0.00047671,3]
[354718227,1740642653469,-500.0,0.00047671,120]
[354718228,1740642653479,-552.19,0.00047671,120]
[354718229,1740642653488,-754.96,0.00047671,120]
[354718230,1740642653498,-710.78,0.00047671,120]
[354718231,1740642653507,-2551.21,0.00047671,120]
[354718232,1740642653516,-500.0,0.00047671,120]
[354718233,1740642653525,-2674.23,0.00047671,120]
[354718234,1740642653535,-151.0,0.00047671,120]
[354718235,1740642653547,-151.0,0.00047671,120]
[354718236,1740642653557,-500.0,0.00047671,120]
[354718237,1740642653566,-615.36,0.00047671,120]
[354718238,1740642653576,-1223.79,0.00047671,120]
[354718239,1740642653587,-1000.0,0.00047671,2]
[354718240,1740642653596,-500.0,0.00047671,120]
[354718241,1740642653606,-500.0,0.00047671,120]
[354718242,1740642653616,-796.34,0.00047671,120]
[354718243,1740642653626,-858.79,0.00047671,120]
[354718244,1740642653636,-500.0,0.00047671,120]
[354718245,1740642653645,-500.0,0.00047671,120]
[354718246,1740642653654,-773.66,0.00047671,120]
[354718247,1740642653663,-500.0,0.00047671,120]
[354718248,1740642653672,-547.26,0.00047671,120]
[354718249,1740642653681,-584.11,0.00047671,120]
[354718250,1740642653690,-500.0,0.00047671,120]
[354718251,1740642653699,-685.79,0.00047671,120]
[354718252,1740642653709,-250.394948,0.00047671,120]
[354718253,1740642653719,-250.394948,0.00047671,120]
[354718254,1740642653728,-705.28,0.00047671,120]
[354718255,1740642653738,-1410.49,0.00047671,120]
[354718256,1740642653747,-500.0,0.00047671,120]
[354718257,1740642653757,-250.394948,0.00047671,120]
[354718258,1740642653766,-250.394948,0.00047671,120]
[354718259,1740642653776,-500.0,0.00047671,120]
[354718260,1740642653786,-1720.27,0.00047671,120]
[354718261,1740642653795,-500.0,0.00047671,120]
[354718262,1740642653805,-500.0,0.00047671,120]
[354718263,1740642653815,-237.073155,0.00047671,2]
[354718264,1740642653824,-500.08,0.00047671,120]
[354718265,1740642653834,-237.073155,0.00047671,2]
[354718266,1740642653843,-902.8,0.00047671,120]
[354718267,1740642653853,-500.0,0.00047671,120]
[354718268,1740642653863,-237.073155,0.00047671,2]
[354718269,1740642653872,-237.073155,0.00047671,2]
[354718270,1740642653882,-500.0,0.00047671,120]
[354718271,1740642653892,-3095.26,0.00047671,120]
[354718272,1740642653901,-1071.42,0.00047671,120]
[354718273,1740642653911,-500.0,0.00047671,120]
[354718274,1740642653920,-500.0,0.00047671,120]
[354718275,1740642653931,-1142.83,0.00047671,120]
[354718276,1740642653940,-500.0,0.00047671,120]
[354718277,1740642653950,-12157.06,0.00047671,6]
[354718278,1740642653961,-1746.49,0.00047671,120]
[354718279,1740642653972,-1033.14,0.00047671,120]
[354718280,1740642653982,-674.59,0.00047671,120]
[354718281,1740642653992,-1697.17,0.00047671,120]
[354718282,1740642654002,-500.0,0.00047671,120]
[354718283,1740642654013,-500.0,0.00047671,120]
[354718284,1740642654024,-500.0,0.00047671,120]
[354718285,1740642654036,-676.9,0.00047671,120]
[354718286,1740642654045,-500.0,0.00047671,120]
[354718287,1740642654055,-500.0,0.00047671,120]
[354718288,1740642654065,-812.00916936,0.00047788,120]
[354718289,1740642654076,-154.8760086,0.00047834,30]
[354718290,1740642654086,-288.20341278,0.00047939,2]
[354718291,1740642654097,-500.0,0.00047945,120]
[354718292,1740642654108,-500.0,0.00047945,120]
[354718293,1740642654118,-500.0,0.00047945,120]
[354718294,1740642654127,-574.71,0.00047945,120]
[354718295,1740642654137,-500.0,0.00047945,120]
[354718296,1740642654147,-500.0,0.00047945,120]
[354718297,1740642654159,-500.0,0.00047945,120]
[354718298,1740642654168,-500.0,0.00047945,120]
[354718299,1740642654178,-500.0,0.00047945,120]
[354718300,1740642654187,-500.0,0.00047945,120]
[354718301,1740642654196,-500.0,0.00047945,120]
[354718302,1740642654206,-500.0,0.00047945,120]
[354718303,1740642654216,-500.0,0.00047945,120]
[354718304,1740642654226,-500.0,0.00047945,120]
[354718305,1740642654237,-500.0,0.00047945,2]
[354718306,1740642654249,-500.0,0.00047945,120]
[354718307,1740642654259,-503.44016034,0.00047945,120]
[354718308,1740642654268,-500.0,0.00047945,120]
[354718309,1740642654278,-500.0,0.00047945,120]
[354718310,1740642654289,-500.0,0.00047945,120]
[354718311,1740642654298,-500.0,0.00047945,120]
[354718312,1740642654307,-560.38589663,0.00047945,120]
[354718313,1740642654318,-515.19,0.00047945,120]
[354718314,1740642654329,-1026.45,0.00047945,120]
[354718315,1740642654340,-2212.85,0.00047945,120]
[354718316,1740642654353,-950.98,0.00047945,120]
[354718317,1740642654363,-500.0,0.00047945,120]
[354718318,1740642654372,-388.36771241,0.00047945,120]
[354718319,1740642654382,-500.0,0.00047945,120]
[354718320,1740642654391,-186.62,0.00047945,120]
[354718321,1740642654403,-870.15,0.00047945,120]
[354718322,1740642654414,-500.0,0.00047945,120]
[354718323,1740642654424,-500.0,0.00047945,120]
[354718324,1740642654433,-766.63,0.00047945,120]
[354718325,1740642654443,-500.0,0.00047945,120]
[354718326,1740642654452,-500.0,0.00047945,120]
[354718327,1740642654461,-367.42013454,0.00047945,120]
[354718328,1740642654470,-888.31,0.00047945,120]
[354718329,1740642654479,-507.84,0.00047945,120]
[354718330,1740642654489,-322.35157071,0.00047945,14]
[354718331,1740642654498,-500.0,0.00047945,120]
[354718332,1740642654507,-616.3,0.00047945,120]
[354718333,1740642654516,-637.6,0.00047945,120]
[354718334,1740642654525,-500.0,0.00047945,120]
[354718335,1740642654534,-500.0,0.00047945,120]
[354718336,1740642654545,-669.6,0.00047945,120]
[354718337,1740642654555,-500.0,0.00047945,120]
[354718338,1740642654563,-1094.3,0.00047945,120]
[354718339,1740642654572,-500.0,0.00047945,120]
[354718340,1740642654582,-818.83,0.00047945,120]
[354718341,1740642654592,-500.0,0.00047945,120]
[354718342,1740642654601,-500.0,0.00047945,120]
[354718343,1740642654611,-697.21,0.00047945,120]
[354718344,1740642654620,-1228.85,0.00047945,120]
[354718345,1740642654630,-500.0,0.00047945,120]
[354718346,1740642654639,-500.0,0.00047945,120]
[354718347,1740642654647,-500.0,0.00047945,120]
[354718348,1740642654657,-179.550595,0.00047945,120]
[354718349,1740642654667,-500.0,0.00047945,120]
[354718350,1740642654676,-179.550595,0.00047945,120]
[354718351,1740642654686,-1022.3,0.00047945,120]
[354718352,1740642654696,-500.0,0.00047945,120]
[354718353,1740642654705,-500.0,0.00047945,120]
[354718354,1740642654714,-500.0,0.00047945,120]
[354718355,1740642654723,-500.0,0.00047945,120]